fUSD/lending_fUSD_20251129
["ID","MTS","AMOUNT","RATE_DAILY","PERIOD"]
[395072199,1764399033037,-503.48335784,0.00015527,2]
[395072200,1764399033048,-347.489999,0.00015527,2]
[395072201,1764399033058,-747.8952764,0.00015527,2]
[395072202,1764399033069,-1006.51056091,0.00015527,2]
[395072203,1764399037972,-471.87366345,0.00015526,2]
[395072204,1764399037983,-28.12633655,0.00015526,2]
[395072205,1764399037992,-500.0,0.00015526,2]
[395072206,1764399038001,-456.39955808,0.00015526,2]
[395072207,1764399038012,-43.60044192,0.00015526,2]
[395072208,1764399038022,-500.0,0.00015526,2]
[395072209,1764399038031,-500.0,0.00015526,2]
[395072210,1764399038040,-500.0,0.00015526,2]
[395072211,1764399038050,-500.0,0.00015526,2]
[395072212,1764399038063,-500.0,0.00015526,2]
[395072213,1764399038073,-500.0,0.00015526,2]
[395072214,1764399038082,-500.0,0.00015526,2]
[395072215,1764399038091,-255.08284508,0.00015526,2]
[395072216,1764399038100,-15801.316713,0.00015527,2]
[395072218,1764399038163,-272.99999997,0.00015527,2]
[395072219,1764399038177,-9593.36663171,0.00015527,2]
[395072220,1764399038187,-288.75296258,0.00015527,2]
[395072221,1764399038202,-253.4450449,0.00015527,2]
[395072222,1764399038244,-3108.0,0.00015527,2]
[395072229,1764399040142,-360.11324534,0.00015527,2]
[395072230,1764399040156,-983.745,0.00015527,2]
[395072231,1764399040298,-409.50000021,0.00015527,2]
[395072243,1764399042927,-1118.62186315,0.00015527,2]
[395072244,1764399043000,-2884.35213485,0.00015527,2]
[395072245,1764399043054,-457.13277964,0.00015527,2]
[395072246,1764399043184,-8734.726,0.00015527,2]
[395072256,1764399046613,-301.5,0.00015527,2]
[395072257,1764399046641,-802.99460594,0.00015527,2]
[395072258,1764399046777,-1086.88479984,0.00015527,2]
[395072267,1764399399202,606.0,0.00022,30]
[395072272,1764399851328,590.08,0.00025,120]
[395072274,1764399873087,250.0,0.00014634,2]
[395072275,1764399919111,550.0,0.00022,30]
[395072276,1764399940818,7501.7,0.00014621,2]
[395072277,1764399952884,2650.75,0.00025,120]
[395072278,1764399967818,3417.505547,7.945e-05,2]
[395072279,1764399985906,611.19,0.00013699,2]
[395072288,1764400029390,4298.357247,7.945e-05,2]
[395072289,1764400106535,-206.01278243,0.00014783,2]
[395072290,1764400106563,-765.369,0.00014882,2]
[395072291,1764400106592,-1188.27,0.00014883,2]
[395072292,1764400106623,-211.0,0.00014883,2]
[395072293,1764400106655,-1000.0,0.00014918,2]
[395072294,1764400106683,-166.67,0.00015052,2]
[395072295,1764400106711,-1261.03143333,0.00015202,2]
[395072296,1764400106739,-157.51062532,0.00015266,2]
[395072297,1764400107019,-1315.05191096,0.00015327,2]
[395072298,1764400107046,-159.91756567,0.00015327,2]
[395072299,1764400107074,-1115.0,0.00015369,2]
[395072300,1764400107168,-4036.93817,0.0001537,2]
[395072301,1764400107651,-1926.13366,0.0001537,2]
[395072302,1764400107680,-1200.0,0.00015381,2]
[395072303,1764400107933,-4770.0,0.00015382,2]
[395072304,1764400107966,-191.01,0.00015424,2]
[395072305,1764400108039,-77.99,0.00015424,2]
[395072306,1764400108074,-300.0,0.00015425,2]
[395072307,1764400108105,-202.21681574,0.00015426,2]
[395072308,1764400108136,-570.33000516,0.00015426,2]
[395072309,1764400108173,-500.0,0.00015426,2]
[395072310,1764400108203,-161.97372963,0.00015426,2]
[395072311,1764400108239,-500.0,0.00015426,2]
[395072312,1764400108272,-500.0,0.00015426,2]
[395072313,1764400108304,-500.0,0.00015426,2]
[395072314,1764400108337,-500.0,0.00015426,2]
[395072315,1764400108369,-500.0,0.00015426,2]
[395072316,1764400108403,-500.0,0.00015426,2]
[395072317,1764400108465,-500.0,0.00015426,2]
[395072318,1764400108496,-500.0,0.00015426,2]
[395072319,1764400108528,-500.0,0.00015426,2]
[395072320,1764400108560,-500.0,0.00015426,2]
[395072321,1764400108592,-500.0,0.00015426,2]
[395072322,1764400108624,-500.0,0.00015426,2]
[395072323,1764400108657,-500.0,0.00015426,2]
[395072324,1764400108689,-500.0,0.00015426,2]
[395072325,1764400108724,-500.0,0.00015426,2]
[395072326,1764400108755,-500.0,0.00015426,2]
[395072327,1764400108932,-500.0,0.00015426,2]
[395072328,1764400108964,-500.0,0.00015426,2]
[395072329,1764400108995,-500.0,0.00015426,2]
[395072330,1764400109031,-500.0,0.00015426,2]
[395072331,1764400109065,-500.0,0.00015426,2]
[395072332,1764400109096,-500.0,0.00015426,2]
[395072333,1764400109130,-500.0,0.00015426,2]
[395072334,1764400109160,-500.0,0.00015426,2]
[395072335,1764400109190,-500.0,0.00015426,2]
[395072336,1764400109221,-500.0,0.00015426,2]
[395072337,1764400109383,-500.0,0.00015426,2]
[395072338,1764400109417,-500.0,0.00015426,2]
[395072339,1764400109449,-500.0,0.00015426,2]
[395072340,1764400109481,-500.0,0.00015426,2]
[395072341,1764400109512,-500.0,0.00015426,2]
[395072342,1764400109543,-500.0,0.00015426,2]
[395072343,1764400109573,-500.0,0.00015426,2]
[395072344,1764400109607,-500.0,0.00015426,2]
[395072345,1764400109639,-408.50610964,0.00015426,2]
[395072346,1764400109670,-500.0,0.00015426,2]
[395072347,1764400111564,-500.0,0.00015426,2]
[395072348,1764400111594,-500.0,0.00015426,2]
[395072349,1764400111624,-500.0,0.00015426,2]
[395072350,1764400111655,-500.0,0.00015426,2]
[395072351,1764400111687,-500.0,0.00015426,2]
[395072352,1764400111720,-500.0,0.00015426,2]
[395072353,1764400111753,-500.0,0.00015426,2]
[395072354,1764400111784,-500.0,0.00015426,2]
[395072355,1764400111816,-500.0,0.00015426,2]
[395072356,1764400111849,-500.0,0.00015426,2]
[395072357,1764400112012,-400.0,0.00015426,2]
[395072358,1764400112044,-500.0,0.00015426,2]
[395072359,1764400112074,-500.0,0.00015426,2]
[395072360,1764400112103,-500.0,0.00015426,2]
[395072361,1764400112135,-500.0,0.00015426,2]
[395072362,1764400112378,-500.0,0.00015426,2]
[395072363,1764400112408,-300.0,0.00015426,2]
[395072364,1764400119428,-5023.70539812,0.00015427,2]
[395072365,1764400124369,-10000.01,0.00015427,2]
[395072366,1764400124476,-10000.01,0.00015427,2]
[395072367,1764400124630,-10000.01,0.00015427,2]
[395072368,1764400124747,-10000.01,0.00015427,2]
[395072369,1764400124922,-10000.01,0.00015427,2]
[395072370,1764400125073,-10000.01,0.00015427,2]
[395072380,1764400232048,-955.4655682,0.00015327,2]
[395072381,1764400232101,-1544.5344318,0.00015327,2]
[395072382,1764400232113,-216.0,0.00015327,2]
[395072383,1764400232123,-14107.14,0.00015417,2]
[395072384,1764400232133,-14107.14,0.00015417,2]
[395072385,1764400232145,-500.0,0.00015426,2]
[395072386,1764400232155,-300.0,0.00015426,2]
[395072387,1764400232169,-300.0,0.00015426,2]
[395072388,1764400232180,-1200.0,0.00015426,2]
[395072389,1764400232191,-300.0,0.00015426,2]
[395072390,1764400232201,-62454.4919285,0.00015427,2]
[395072391,1764400232214,-5012.80764253,0.00015427,2]
[395072392,1764400232257,-366.2961351,0.00015427,2]
[395072393,1764400232269,-1057.0679968,0.00015427,2]
[395072404,1764400238830,-121431.21956353,0.00015427,2]
[395072405,1764400238894,-36229.76814676,0.00015427,2]
[395072407,1764400240364,-1516.49999999,0.00015427,2]
[395072408,1764400240494,-29631.00262072,0.00015427,2]
[395072409,1764400240507,-12368.99737928,0.00015427,2]
[395072419,1764400243308,-11015.91593228,0.00015327,2]
[395072420,1764400243318,-630.35543668,0.00015427,2]
[395072426,1764400246172,-746.40126835,0.00015427,2]
[395072427,1764400246184,-409.55999997,0.00015427,2]
[395072428,1764400246318,-2286.909625,0.00015427,2]
[395072443,1764400670730,200.0,0.00014536,2]
[395072444,1764400736614,100.0,0.00014526,2]
[395072445,1764400736646,530.08,0.00014526,2]
[395072446,1764400896224,500.0,0.00014205,2]
[395072447,1764401017189,999.0,0.00014426,3]
[395072450,1764401217059,200.0,0.00014403,2]
[395072459,1764401247127,-401.79272123,0.00014771,2]
[395072462,1764401250954,-374.178,0.00014771,2]
[395072463,1764401254275,-649.02927877,0.00014771,2]
[395072464,1764401254739,-250.0,0.00014846,2]
[395072465,1764401254761,-157.51062533,0.00015092,2]
[395072466,1764401254785,-882.42538329,0.0001516,2]
[395072467,1764401256520,-542.57461671,0.0001516,2]
[395072468,1764401256542,-112.31189404,0.000152,2]
[395072469,1764401258650,-65.68810596,0.000152,2]
[395072470,1764401258674,-112.58911447,0.000152,2]
[395072471,1764401262902,-101.41088553,0.000152,2]
[395072472,1764401262928,-217.76660372,0.00015216,2]
[395072473,1764401267106,-152.38,0.00015216,2]
[395072486,1764401371685,616.04,0.00014444,2]
[395072489,1764401398455,235.92,7.219e-05,2]
[395072490,1764401398528,235.92,7.599e-05,2]
[395072491,1764401398728,235.92,7.979e-05,2]
[395072492,1764401398916,235.92,8.359e-05,2]
[395072493,1764401399108,235.92,8.739e-05,2]
[395072494,1764401399304,235.92,9.118e-05,2]
[395072495,1764401399650,235.92,9.498e-05,2]
[395072496,1764401399845,235.92,9.878e-05,2]
[395072497,1764401400397,235.92,0.00010258,2]
[395072498,1764401400491,235.92,0.00010638,2]
[395072499,1764401400701,235.92,0.00011018,2]
[395072500,1764401400893,235.92,0.00011398,2]
[395072501,1764401401165,235.92,0.00011778,2]
[395072502,1764401401366,235.92,0.00012158,2]
[395072503,1764401401667,235.92,0.00012538,2]
[395072504,1764401401856,235.92,0.00012918,2]
[395072505,1764401402020,235.92,0.00013298,2]
[395072506,1764401402200,235.92,0.00013678,2]
[395072507,1764401402394,235.92,0.00014058,2]
[395072508,1764401402691,235.92,0.00014438,2]
[395072567,1764401432655,-1231.85339628,0.00015216,2]
[395072568,1764401432666,-300.0,0.00015222,2]
[395072570,1764401432677,-300.0,0.00015222,2]
[395072571,1764401432687,-1200.0,0.00015222,2]
[395072572,1764401432696,-1366.68736861,0.00015223,2]
[395072573,1764401432709,-7223.30491308,0.00015223,2]
[395072574,1764401432719,-10311.90485278,0.00015223,2]
[395072575,1764401432728,-420.2104,0.00015223,2]
[395072576,1764401432737,-500.0,0.00015227,2]
[395072577,1764401432747,-300.0,0.00015261,2]
[395072578,1764401432756,-666.0,0.00015261,2]
[395072579,1764401432765,-466.8823895,0.00015261,2]
[395072580,1764401432774,-267.46074303,0.00015261,2]
[395072581,1764401432783,-999.99,0.0001531,2]
[395072582,1764401432792,-1595.45,0.0001531,2]
[395072583,1764401432801,-513.41,0.0001531,2]
[395072584,1764401432811,-308.22,0.0001531,2]
[395072585,1764401432820,-300.0,0.00015313,2]
[395072586,1764401432829,-200.0,0.00015314,2]
[395072587,1764401432839,-500.0,0.00015314,2]
[395072588,1764401432848,-151.0,0.00015314,2]
[395072589,1764401432857,-500.0,0.00015314,2]
[395072590,1764401432866,-151.0,0.00015314,2]
[395072591,1764401432875,-151.0,0.00015314,2]
[395072592,1764401432884,-151.0,0.00015314,2]
[395072593,1764401432894,-500.0,0.00015314,2]
[395072594,1764401432904,-553.64373807,0.00015314,2]
[395072595,1764401432913,-500.0,0.00015314,2]
[395072596,1764401432922,-151.0,0.00015314,2]
[395072597,1764401432931,-500.0,0.00015314,2]
[395072598,1764401432940,-151.0,0.00015314,2]
[395072599,1764401432950,-500.0,0.00015314,2]
[395072600,1764401432959,-151.0,0.00015314,2]
[395072601,1764401432968,-500.0,0.00015314,2]
[395072602,1764401432978,-151.0,0.00015314,2]
[395072603,1764401432987,-500.0,0.00015314,2]
[395072604,1764401432996,-277.50242414,0.00015314,2]
[395072605,1764401433006,-500.0,0.00015314,2]
[395072606,1764401433015,-500.0,0.00015314,2]
[395072607,1764401433024,-500.0,0.00015314,2]
[395072608,1764401433034,-500.0,0.00015314,2]
[395072609,1764401433043,-500.0,0.00015314,2]
[395072610,1764401433053,-200.0,0.00015314,2]
[395072611,1764401433062,-200.0,0.00015314,2]
[395072612,1764401433072,-500.0,0.00015314,2]
[395072613,1764401433081,-500.0,0.00015314,2]
[395072614,1764401433092,-500.0,0.00015314,2]
[395072615,1764401433101,-151.0,0.00015314,2]
[395072616,1764401433111,-500.0,0.00015314,2]
[395072617,1764401433121,-500.0,0.00015314,2]
[395072618,1764401433130,-500.0,0.00015314,2]
[395072619,1764401433140,-500.0,0.00015314,2]
[395072620,1764401433150,-500.0,0.00015314,2]
[395072621,1764401433160,-500.0,0.00015314,2]
[395072622,1764401433169,-151.0,0.00015314,2]
[395072623,1764401433178,-500.0,0.00015314,2]
[395072624,1764401433188,-151.0,0.00015314,2]
[395072625,1764401433198,-500.0,0.00015314,2]
[395072626,1764401433208,-151.0,0.00015314,2]
[395072627,1764401433218,-500.0,0.00015314,2]
[395072628,1764401433228,-151.0,0.00015314,2]
[395072629,1764401433237,-151.0,0.00015314,2]
[395072630,1764401433246,-151.0,0.00015314,2]
[395072631,1764401433256,-151.0,0.00015314,2]
[395072632,1764401433266,-250.0,0.00015314,2]
[395072633,1764401433275,-151.0,0.00015314,2]
[395072634,1764401433284,-500.0,0.00015314,2]
[395072635,1764401433293,-250.0,0.00015314,2]
[395072636,1764401433303,-151.0,0.00015314,2]
[395072637,1764401433313,-500.0,0.00015314,2]
[395072638,1764401433322,-250.0,0.00015314,2]
[395072639,1764401433331,-151.0,0.00015314,2]
[395072640,1764401433341,-500.0,0.00015314,2]
[395072641,1764401433351,-250.0,0.00015314,2]
[395072642,1764401433360,-151.0,0.00015314,2]
[395072643,1764401433369,-382.0011413,0.00015314,2]
[395072644,1764401433379,-250.0,0.00015314,2]
[395072645,1764401433388,-151.0,0.00015314,2]
[395072646,1764401433397,-250.0,0.00015314,2]
[395072647,1764401433407,-250.0,0.00015314,2]
[395072648,1764401433416,-300.24495868,0.00015314,2]
[395072649,1764401433425,-334.5472959,0.00015314,2]
[395072650,1764401433434,-500.0,0.00015314,2]
[395072651,1764401433444,-500.0,0.00015314,2]
[395072652,1764401433453,-500.0,0.00015314,2]
[395072653,1764401433464,-500.0,0.00015314,2]
[395072654,1764401433475,-500.0,0.00015314,2]
[395072655,1764401433484,-500.0,0.00015314,2]
[395072656,1764401433493,-257.7974173,0.00015314,2]
[395072657,1764401433503,-500.0,0.00015314,2]
[395072658,1764401433512,-500.0,0.00015314,2]
[395072659,1764401433522,-500.0,0.00015314,2]
[395072660,1764401433531,-529.43708906,0.00015314,2]
[395072661,1764401433540,-151.0,0.00015314,2]
[395072662,1764401433550,-151.0,0.00015314,2]
[395072663,1764401433559,-500.0,0.00015314,2]
[395072664,1764401433569,-151.0,0.00015314,2]
[395072665,1764401433579,-500.0,0.00015314,2]
[395072666,1764401433588,-151.0,0.00015314,2]
[395072667,1764401433598,-500.0,0.00015314,2]
[395072668,1764401433607,-151.0,0.00015314,2]
[395072669,1764401433617,-500.0,0.00015314,2]
[395072670,1764401433630,-151.0,0.00015314,2]
[395072671,1764401433640,-500.0,0.00015314,2]
[395072672,1764401433649,-151.0,0.00015314,2]
[395072673,1764401433659,-500.0,0.00015314,2]
[395072674,1764401433669,-151.0,0.00015314,2]
[395072675,1764401433679,-500.0,0.00015314,2]
[395072676,1764401433688,-151.0,0.00015314,2]
[395072677,1764401433697,-151.0,0.00015314,2]
[395072678,1764401433709,-500.0,0.00015314,2]
[395072679,1764401433719,-500.0,0.00015314,2]
[395072680,1764401433729,-151.0,0.00015314,2]
[395072681,1764401433739,-151.0,0.00015314,2]
[395072682,1764401433748,-500.0,0.00015314,2]
[395072683,1764401433758,-362.7604231,0.00015314,2]
[395072684,1764401433767,-151.0,0.00015314,2]
[395072685,1764401433776,-151.0,0.00015314,2]
[395072686,1764401433786,-151.0,0.00015314,2]
[395072687,1764401433794,-151.0,0.00015314,2]
[395072688,1764401433804,-151.0,0.00015314,2]
[395072689,1764401433813,-151.0,0.00015314,2]
[395072690,1764401433822,-151.0,0.00015314,2]
[395072691,1764401433831,-151.0,0.00015314,2]
[395072692,1764401433841,-151.0,0.00015314,2]
[395072693,1764401433851,-151.0,0.00015319,2]
[395072694,1764401433860,-1602.0,0.00015319,2]
[395072695,1764401433869,-3807.41,0.00015319,2]
[395072696,1764401433879,-299.99,0.00015319,2]
[395072697,1764401433889,-2954.1,0.00015319,2]
[395072698,1764401433899,-2346.11312266,0.00015319,2]
[395072699,1764401433914,-7653.87687734,0.00015319,2]
[395072700,1764401433923,-9999.99,0.00015319,2]
[395072701,1764401433932,-1457.56,0.00015319,2]
[395072702,1764401433942,-150.99,0.00015319,2]
[395072703,1764401433951,-214.50985197,0.00015322,2]
[395072704,1764401433960,-500.0,0.00015322,2]
[395072705,1764401433969,-182.3737049,0.00015322,2]
[395072706,1764401433979,-158.24845975,0.00015322,2]
[395072707,1764401433988,-225.1512615,0.00015322,2]
[395072708,1764401433997,-500.0,0.00015322,2]
[395072709,1764401434007,-500.0,0.00015322,2]
[395072710,1764401434016,-500.0,0.00015322,2]
[395072711,1764401434025,-500.0,0.00015322,2]
[395072712,1764401434034,-500.0,0.00015322,2]
[395072713,1764401434044,-500.0,0.00015322,2]
[395072714,1764401434053,-500.0,0.00015322,2]
[395072715,1764401434062,-500.0,0.00015322,2]
[395072716,1764401434072,-500.0,0.00015322,2]
[395072717,1764401434081,-500.0,0.00015322,2]
[395072718,1764401434090,-500.0,0.00015322,2]
[395072719,1764401434099,-455.30254351,0.00015322,2]
[395072720,1764401434111,-44.69745649,0.00015322,2]
[395072721,1764401434120,-500.0,0.00015322,2]
[395072722,1764401434131,-500.0,0.00015322,2]
[395072723,1764401434142,-500.0,0.00015322,2]
[395072724,1764401434153,-500.0,0.00015322,2]
[395072725,1764401434162,-500.0,0.00015322,2]
[395072726,1764401434174,-90.51277847,0.00015322,2]
[395072727,1764401434188,-409.48722153,0.00015322,2]
[395072728,1764401434199,-113.51277847,0.00015322,2]
[395072729,1764401434216,-271.90586894,0.00015322,2]
[395072730,1764401434335,-114.58135259,0.00015322,2]
[395072731,1764401434345,-500.0,0.00015322,2]
[395072732,1764401434355,-323.34407429,0.00015322,2]
[395072733,1764401434365,-500.0,0.00015322,2]
[395072734,1764401434376,-298.62504685,0.00015322,2]
[395072762,1764401440423,-201.37495315,0.00015322,2]
[395072763,1764401440432,-500.0,0.00015322,2]
[395072764,1764401440441,-500.0,0.00015322,2]
[395072765,1764401440451,-500.0,0.00015322,2]
[395072766,1764401440460,-500.0,0.00015322,2]
[395072767,1764401440471,-500.0,0.00015322,2]
[395072768,1764401440480,-500.0,0.00015322,2]
[395072769,1764401440490,-500.0,0.00015322,2]
[395072770,1764401440499,-500.0,0.00015322,2]
[395072771,1764401440508,-191.80577345,0.00015322,2]
[395072772,1764401440518,-500.0,0.00015322,2]
[395072773,1764401440528,-471.43794341,0.00015322,2]
[395072774,1764401440537,-404.38969789,0.00015323,2]
[395072775,1764401440547,-436387.68645638,0.00015323,2]
[395072776,1764401440613,-61522.70697984,0.00015323,2]
[395072777,1764401440624,-1587.73838879,0.00015323,2]
[395072778,1764401440638,-1363.68834929,0.00015323,2]
[395072779,1764401440651,-18294.71640001,0.00015323,2]
[395072780,1764401440671,-1446.41958768,0.00015323,2]
[395072781,1764401440859,-906.86,0.00015323,2]
[395072782,1764401441093,-1.7e-07,0.00015323,2]
[395072792,1764401563770,150.58,0.0001473,2]
[395072794,1764401636992,2751.0,0.00014416,2]
[395072795,1764401694588,166.66,0.0001371,2]
[395072796,1764401694699,166.66,0.00013998,2]
[395072797,1764401694805,166.66,0.00014287,2]
[395072798,1764401695044,166.66,0.00014576,2]
[395072799,1764401757406,4110.13,0.00014393,2]
[395072800,1764401815559,1000.0,0.00014374,2]
[395072801,1764401925920,261.06,0.00014291,2]
[395072808,1764402087344,3962.18,0.0001423,2]
[395072809,1764402087372,10000.01,0.0001423,2]
[395072810,1764402087399,10000.01,0.0001423,2]
[395072811,1764402087424,1215.27,0.0001423,2]
[395072818,1764402321081,150.0,0.00014671,2]
[395072820,1764402325953,195.25576739,0.00014671,2]
[395072821,1764402328563,150.0,0.00014671,2]
[395072822,1764402328671,150.0,0.00014671,2]
[395072823,1764402328812,150.0,0.00014671,2]
[395072824,1764402334866,150.0,0.00014671,2]
[395072825,1764402335704,150.0,0.00014671,2]
[395072826,1764402341817,160.76603447,0.00014671,2]
[395072830,1764402344108,150.0,0.00014671,2]
[395072831,1764402392422,-23845.74752994,0.00042073,120]
[395072832,1764402392469,-233.34317125,0.00042073,120]
[395072833,1764402392516,-5100.0,0.00042073,36]
[395072834,1764402392565,-1703.88736169,0.00042073,120]
[395072835,1764402392613,-215.0,0.00042073,30]
[395072836,1764402392660,-204.54089,0.00042073,60]
[395072837,1764402392706,-291.70923535,0.00042073,30]
[395072838,1764402392749,-181.18229936,0.00042073,30]
[395072839,1764402392794,-212.0,0.00042073,120]
[395072840,1764402392840,-182.0,0.00042073,120]
[395072841,1764402392886,-105328.40385361,0.00042073,30]
[395072842,1764402392933,-153.57035572,0.00042073,120]
[395072843,1764402392979,-164.02880611,0.00042073,30]
[395072844,1764402393026,-15664.0,0.00042073,120]
[395072845,1764402393072,-15475.155292,0.00042073,60]
[395072846,1764402393121,-5900.0,0.00042073,120]
[395072847,1764402393168,-999.97382562,0.00042073,120]
[395072848,1764402393218,-456.241244,0.00042073,120]
[395072849,1764402393266,-922.9174972,0.00042073,120]
[395072850,1764402393316,-74302.21222426,0.00042073,30]
[395072851,1764402393365,-26211.79977192,0.00042073,120]
[395072852,1764402393417,-20493.95765215,0.00042073,120]
[395072853,1764402393467,-12409.97,0.00042073,45]
[395072854,1764402393518,-2570.89064073,0.00042073,80]
[395072855,1764402393567,-5232.0,0.00042073,120]
[395072856,1764402393617,-40000.0,0.00042073,30]
[395072857,1764402393671,-2165000.0,0.00042073,30]
[395072858,1764402393723,-233.77862699,0.00042073,120]
[395072859,1764402393775,-93495.73802197,0.00042073,48]
[395072860,1764402393826,-168.99129628,0.00042073,120]
[395072861,1764402393878,-242.25884925,0.00042073,120]
[395072862,1764402393931,-486.77818452,0.00042073,60]
[395072863,1764402393980,-169.78343083,0.00042073,120]
[395072864,1764402394033,-150.02,0.00042073,30]
[395072865,1764402394083,-150.02,0.00042073,30]
[395072866,1764402394133,-150.02,0.00042073,30]
[395072867,1764402394187,-150.02,0.00042073,30]
[395072868,1764402394236,-150.02,0.00042073,30]
[395072869,1764402394285,-150.02,0.00042073,30]
[395072870,1764402394337,-150.02,0.00042073,30]
[395072871,1764402394399,-234.86532177,0.00042073,60]
[395072872,1764402394448,-150.02,0.00042073,30]
[395072873,1764402394498,-150.02,0.00042073,30]
[395072874,1764402394549,-150.02,0.00042073,30]
[395072875,1764402394600,-150.02,0.00042073,30]
[395072876,1764402394651,-200.0,0.00042073,30]
[395072877,1764402394702,-300.0,0.00042073,30]
[395072878,1764402394752,-150.02,0.00042073,30]
[395072879,1764402394803,-150.02,0.00042073,30]
[395072880,1764402394853,-150.02,0.00042073,30]
[395072881,1764402394904,-150.02,0.00042073,30]
[395072882,1764402394954,-150.02,0.00042073,30]
[395072883,1764402395003,-150.02,0.00042073,30]
[395072884,1764402395051,-150.02,0.00042073,30]
[395072885,1764402395099,-150.02,0.00042073,30]
[395072886,1764402395148,-150.02,0.00042073,30]
[395072887,1764402395198,-150.02,0.00042073,30]
[395072888,1764402395246,-150.02,0.00042073,30]
[395072889,1764402395295,-201.591,0.00042073,60]
[395072890,1764402395347,-150.02,0.00042073,30]
[395072891,1764402395396,-150.02,0.00042073,30]
[395072892,1764402395449,-150.02,0.00042073,30]
[395072893,1764402395499,-150.02,0.00042073,30]
[395072894,1764402395550,-150.02,0.00042073,30]
[395072895,1764402395602,-150.02,0.00042073,30]
[395072896,1764402395654,-150.02,0.00042073,30]
[395072897,1764402395705,-150.02,0.00042073,30]
[395072898,1764402395755,-150.02,0.00042073,30]
[395072899,1764402395808,-150.02,0.00042073,30]
[395072900,1764402395858,-150.02,0.00042073,30]
[395072901,1764402395907,-150.02,0.00042073,30]
[395072902,1764402395959,-150.02,0.00042073,30]
[395072903,1764402396011,-150.02,0.00042073,30]
[395072904,1764402396061,-150.02,0.00042073,30]
[395072905,1764402396114,-150.02,0.00042073,30]
[395072906,1764402396166,-150.02,0.00042073,30]
[395072907,1764402396217,-150.02,0.00042073,30]
[395072908,1764402396268,-150.02,0.00042073,30]
[395072909,1764402396320,-196.02,0.00042073,30]
[395072910,1764402396373,-150.02,0.00042073,30]
[395072911,1764402396425,-163.0,0.00042073,30]
[395072912,1764402396476,-166.72,0.00042073,120]
[395072913,1764402396526,-110262.86361799,0.00042073,60]
[395072914,1764402396577,-150.02,0.00042073,30]
[395072915,1764402396627,-150.02,0.00042073,30]
[395072916,1764402396685,-150.02,0.00042073,30]
[395072917,1764402396737,-150.02,0.00042073,30]
[395072918,1764402396790,-150.02,0.00042073,30]
[395072919,1764402396843,-150.02,0.00042073,30]
[395072920,1764402396895,-150.02,0.00042073,30]
[395072921,1764402396947,-150.02,0.00042073,30]
[395072922,1764402397000,-150.02,0.00042073,30]
[395072923,1764402397339,-150.02,0.00042073,30]
[395072924,1764402397397,-150.02,0.00042073,30]
[395072925,1764402397452,-150.02,0.00042073,30]
[395072926,1764402397501,-150.02,0.00042073,30]
[395072927,1764402397551,-150.02,0.00042073,30]
[395072928,1764402397603,-150.02,0.00042073,30]
[395072929,1764402397655,-150.02,0.00042073,30]
[395072930,1764402397706,-150.02,0.00042073,30]
[395072931,1764402397758,-150.02,0.00042073,30]
[395072932,1764402397810,-150.02,0.00042073,30]